bitfinex/quotes_BTCUSD_20250809
["timestamp","ask_amount","ask_price","bid_price","bid_amount"]
[1754766905317,0.8236585,116730.0,116720.0,0.06947762]
[1754766906196,0.8246585,116730.0,116720.0,0.06947762]
[1754766930899,0.18881394,116710.0,116700.0,0.20427762]
[1754766931114,0.2248316,116710.0,116700.0,0.20646835]
[1754766932391,0.2248316,116710.0,116700.0,0.20946835]
[1754766939997,0.2248316,116710.0,116700.0,0.20642835]
[1754766942628,0.2298916,116710.0,116700.0,0.13695073]
[1754766942837,0.2298916,116710.0,116700.0,0.13484073]
[1754766944724,0.2298916,116710.0,116700.0,0.13695073]
[1754766947581,0.2298916,116710.0,116700.0,0.20642835]
[1754766965013,0.2298916,116710.0,116700.0,0.13695073]
[1754766965252,0.2298916,116710.0,116700.0,0.13484073]
[1754766966384,0.2298916,116710.0,116700.0,0.00308073]
[1754766966600,0.2298916,116710.0,116700.0,0.13480073]
[1754766986562,0.2298916,116710.0,116700.0,0.13683073]
[1754766994814,0.2298916,116710.0,116700.0,0.13480073]
[1754767013467,0.31675371,116710.0,116700.0,0.00308073]
[1754767013704,0.31675371,116710.0,116700.0,0.13524073]
[1754767014369,0.65675371,116710.0,116700.0,1e-08]
[1754767014584,0.78891371,116710.0,116700.0,1e-08]
[1754767014796,0.81464871,116710.0,116700.0,1e-08]
[1754767015471,0.1713796,116700.0,116690.0,0.13216]
[1754767015664,0.35032596,116700.0,116690.0,0.13216]
[1754767017464,0.35032596,116700.0,116690.0,0.13316]
[1754767018225,0.35032596,116700.0,116690.0,0.13416]
[1754767019263,0.35870994,116700.0,116690.0,0.13416]
[1754767034635,0.35870994,116700.0,116690.0,0.002]
[1754767034636,0.71615896,116700.0,116690.0,0.002]
[1754767034849,0.84819896,116700.0,116690.0,0.002]
[1754767035527,0.87393796,116700.0,116690.0,0.001]
[1754767035733,0.52884331,116690.0,116680.0,0.13204]
[1754767035954,0.70456967,116690.0,116680.0,0.13204]
[1754767036158,0.70778967,116690.0,116680.0,0.13204]
[1754767045802,0.70249967,116690.0,116680.0,0.1341]
[1754767046019,0.61570542,116690.0,116680.0,0.13712]
[1754767046234,0.61570542,116690.0,116680.0,0.20659762]
[1754767046452,0.5982564,116690.0,116680.0,0.20659762]
[1754767046870,0.17139429,116690.0,116680.0,0.74818271]
[1754767047322,0.25817385,116700.0,116680.0,0.74818271]
[1754767047543,0.5113796,116700.0,116690.0,0.17441429]
[1754767047753,0.5113796,116700.0,116690.0,0.17647429]
[1754767047963,0.03613916,116710.0,116700.0,0.1713796]
[1754767048175,0.0001215,116710.0,116700.0,0.75033557]
[1754767048380,0.0001215,116710.0,116700.0,0.74819333]
[1754767048799,0.0001215,116710.0,116700.0,0.87151911]
[1754767049021,0.0001215,116710.0,116700.0,0.98326122]
[1754767049676,0.0001215,116710.0,116700.0,0.99368412]
[1754767049930,0.0001215,116710.0,116700.0,0.50018223]
[1754767050140,0.0001215,116710.0,116700.0,0.99368412]
[1754767050564,0.0001215,116710.0,116700.0,0.99668412]
[1754767050978,0.0001215,116710.0,116700.0,0.99468412]
[1754767051185,0.0001215,116710.0,116700.0,0.99968412]
[1754767051606,0.0001215,116710.0,116700.0,0.1844596]
[1754767051818,0.0001215,116710.0,116700.0,0.3164996]
[1754767052044,0.0001215,116710.0,116700.0,0.3114996]
[1754767052176,0.0001215,116710.0,116700.0,0.3144996]
[1754767054446,0.0001215,116710.0,116700.0,0.83372949]
[1754767055683,0.0001215,116710.0,116700.0,0.3402276]
[1754767055927,0.0001215,116710.0,116700.0,0.83372949]
[1754767057594,0.0001215,116710.0,116700.0,0.9205916]
[1754767058160,0.0001215,116710.0,116700.0,1.4170516]
[1754767063524,0.0001215,116710.0,116700.0,1.1511516]
[1754767065638,0.0001215,116710.0,116700.0,1.1262716]
[1754767066659,0.0001215,116710.0,116700.0,0.63276971]
[1754767066801,0.0001215,116710.0,116700.0,1.1262716]
[1754767067207,0.0001215,116710.0,116700.0,0.63276971]
[1754767067407,0.0001215,116710.0,116700.0,1.1262716]
[1754767068388,0.0001215,116710.0,116700.0,0.9912116]
[1754767068604,0.0001215,116710.0,116700.0,1.1232116]
[1754767069326,0.0001215,116710.0,116700.0,1.1263216]
[1754767070489,0.0001215,116710.0,116700.0,0.9943216]
[1754767070720,0.0001215,116710.0,116700.0,1.1232116]
[1754767076210,0.0001215,116710.0,116700.0,1.1263216]
[1754767076436,7.226e-05,116710.0,116700.0,1.1263216]
[1754767080305,7.226e-05,116710.0,116700.0,0.63281971]
[1754767080509,0.17132099,116740.0,116720.0,0.17135023]
[1754767080726,0.00207,116730.0,116720.0,0.1734921]
[1754767080929,0.00207,116730.0,116720.0,0.3056121]
[1754767081162,0.00207,116730.0,116720.0,0.30347023]
[1754767081792,0.00207,116730.0,116720.0,0.30447023]
[1754767082654,0.00502,116730.0,116720.0,0.30447023]
[1754767083322,0.00502,116730.0,116720.0,0.30547023]
[1754767083778,0.00502,116730.0,116720.0,0.30447023]
[1754767084215,0.00502,116730.0,116720.0,0.30547023]
[1754767084429,0.00502,116730.0,116720.0,0.33077681]
[1754767086614,0.00502,116730.0,116720.0,0.70081969]
[1754767088287,0.00502,116730.0,116720.0,0.77787519]
[1754767088495,0.00502,116730.0,116720.0,0.77985519]
[1754767089974,0.00502,116730.0,116720.0,0.40981231]
[1754767094834,0.00502,116730.0,116720.0,0.40783231]
[1754767100473,0.17635556,116730.0,116720.0,0.40783231]
[1754767102214,0.00502,116730.0,116720.0,0.1318]
[1754767102424,0.00502,116730.0,116720.0,0.3073621]
[1754767102629,0.00502,116730.0,116720.0,0.30522023]
[1754767103243,0.17635556,116730.0,116720.0,0.30522023]
[1754767103618,0.21112321,116730.0,116720.0,0.30522023]
[1754767103815,0.21112321,116730.0,116720.0,0.33070421]
[1754767108655,0.03683765,116730.0,116720.0,0.33070421]
[1754767108873,0.00207,116730.0,116720.0,0.33070421]
[1754767109105,0.17340556,116730.0,116720.0,0.33070421]
[1754767113253,0.17642556,116730.0,116720.0,0.33070421]
[1754767114684,0.17642556,116730.0,116720.0,0.32863421]
[1754767116621,0.17642556,116730.0,116720.0,0.33070421]
[1754767116872,0.21120022,116730.0,116720.0,0.33070421]
[1754767117310,0.21120022,116730.0,116720.0,0.32863421]
[1754767119361,0.21120022,116730.0,116720.0,0.33070421]
[1754767120523,0.21120022,116730.0,116720.0,0.33392421]
[1754767120524,0.20818022,116730.0,116720.0,0.33392421]
[1754767122841,0.20818022,116730.0,116720.0,0.33070421]
[1754767123062,0.21120022,116730.0,116720.0,0.33070421]
[1754767123206,0.20818022,116730.0,116720.0,0.33070421]
[1754767123818,0.21120022,116730.0,116720.0,0.33070421]
[1754767124439,0.22864924,116730.0,116720.0,0.02548398]
[1754767124621,0.22864924,116730.0,116720.0,0.15724398]
[1754767126217,0.22864924,116730.0,116720.0,0.13176]
[1754767128405,0.22864924,116730.0,116720.0,0.15727741]
[1754767148385,0.22864924,116730.0,116720.0,0.32862764]
[1754767148603,0.22864924,116730.0,116720.0,0.15936741]
[1754767159420,0.22864924,116730.0,116720.0,0.13176]
[1754767160687,0.17135023,116720.0,116700.0,0.3862322]
[1754767160929,0.21135018,116720.0,116710.0,0.13172]
[1754767161134,0.21660018,116720.0,116710.0,0.13172]
[1754767161552,0.21660018,116720.0,116710.0,0.13383]
[1754767161767,0.17136492,116710.0,116700.0,0.1891276]
[1754767161986,0.17136492,116710.0,116700.0,0.48576822]
[1754767162213,0.20994543,116710.0,116700.0,0.48576822]
[1754767162421,0.20994543,116710.0,116700.0,0.48876822]
[1754767163411,0.20994543,116710.0,116700.0,0.49176822]
[1754767163643,0.20994543,116710.0,116700.0,0.38084722]
[1754767164078,0.20994543,116710.0,116700.0,0.38384722]
[1754767167265,0.20994543,116710.0,116700.0,0.40957522]
[1754767170189,0.21210543,116710.0,116700.0,0.40641522]
[1754767170389,0.21519543,116710.0,116700.0,0.40641522]
[1754767170594,0.21210543,116710.0,116700.0,0.40641522]
[1754767171238,0.21210543,116710.0,116700.0,0.40957522]
[1754767175470,0.21210543,116710.0,116700.0,0.23819562]
[1754767175673,0.21210543,116710.0,116700.0,0.23503562]
[1754767185045,0.21519543,116710.0,116700.0,0.23503562]
[1754767188091,0.21519543,116710.0,116700.0,0.23499562]
[1754767189077,0.21519543,116710.0,116700.0,0.23199562]
[1754767189496,0.21519543,116710.0,116700.0,0.22899562]
[1754767190096,0.21519543,116710.0,116700.0,0.23099562]
[1754767190298,0.21519543,116710.0,116700.0,0.161518]
[1754767190520,0.21519543,116710.0,116700.0,0.163518]
[1754767191307,0.21519543,116710.0,116700.0,0.031838]
[1754767191847,0.21519543,116710.0,116700.0,0.004]
[1754767192055,0.21519543,116710.0,116700.0,0.13568]
[1754767199826,0.31950656,116710.0,116700.0,0.004]
[1754767200033,0.65950656,116710.0,116700.0,0.13568]
[1754767200869,0.65950656,116710.0,116700.0,0.13368]
[1754767201079,0.65950656,116710.0,116700.0,0.13168]
[1754767201317,0.65950656,116710.0,116700.0,0.13268]
[1754767201738,0.65950656,116710.0,116700.0,0.13168]
[1754767201971,0.17139429,116690.0,116680.0,0.20568]
[1754767202176,0.20772294,116690.0,116680.0,0.2079015]
[1754767202617,0.20772294,116690.0,116680.0,0.3395815]
[1754767202820,0.20772294,116690.0,116680.0,0.2058015]
[1754767202821,0.21067294,116690.0,116680.0,0.2058015]
[1754767203034,0.22812196,116690.0,116680.0,0.3374815]
[1754767203452,0.23658425,116690.0,116680.0,0.3374815]
[1754767203666,0.23658425,116690.0,116680.0,0.3394815]
[1754767204110,0.23658425,116690.0,116680.0,0.3414815]
[1754767204545,0.23658425,116690.0,116680.0,0.2098015]
[1754767204744,0.23658425,116690.0,116680.0,0.3414815]
[1754767204999,0.23658425,116690.0,116680.0,0.3394815]
[1754767205205,0.23658425,116690.0,116680.0,0.3374815]
[1754767205408,0.23658425,116690.0,116680.0,0.3394815]
[1754767206799,0.22812196,116690.0,116680.0,0.3394815]
[1754767209687,0.23674322,116690.0,116680.0,0.3394815]
[1754767209897,0.23674322,116690.0,116680.0,0.2078015]
[1754767210071,0.23674322,116690.0,116680.0,0.3394815]
[1754767212237,0.32360533,116690.0,116680.0,0.3394815]
[1754767212675,0.66360533,116690.0,116680.0,0.3394815]
[1754767214283,0.66360533,116690.0,116680.0,0.3384815]
[1754767214505,0.66460533,116690.0,116680.0,0.3374815]
[1754767214920,0.66560533,116690.0,116680.0,0.3374815]
[1754767215555,0.66560533,116690.0,116680.0,0.1318015]
[1754767218626,0.66560533,116690.0,116680.0,0.1317615]
[1754767219722,0.66560533,116690.0,116680.0,0.1033645]
[1754767221542,0.17142367,116670.0,116660.0,0.07304762]
[1754767221732,0.20570821,116670.0,116660.0,0.20665762]
[1754767223776,0.20570821,116670.0,116660.0,0.20865762]
[1754767224226,0.20570821,116670.0,116660.0,0.21065762]
[1754767227538,0.20570821,116670.0,116660.0,0.14118]
[1754767229428,0.20779821,116670.0,116660.0,0.00637]
[1754767229647,0.22817723,116670.0,116660.0,0.13801]
[1754767230281,0.22817723,116670.0,116660.0,0.13601]
[1754767230502,0.22817723,116670.0,116660.0,0.13501]
[1754767230746,0.22817723,116670.0,116660.0,0.13601]
[1754767231604,0.22524723,116670.0,116660.0,0.13601]
[1754767231815,0.31503934,116670.0,116660.0,0.13404]
[1754767232057,0.31503934,116670.0,116660.0,0.13601]
[1754767232507,0.31210934,116670.0,116660.0,0.13601]
[1754767232929,0.31001934,116670.0,116660.0,0.13903]
[1754767238421,0.31210934,116670.0,116660.0,0.13903]
[1754767242293,0.31210934,116670.0,116660.0,0.13601]
[1754767247400,0.31516934,116670.0,116660.0,0.13601]
[1754767249430,0.31516934,116670.0,116660.0,0.0024]
[1754767249765,0.31516934,116670.0,116660.0,0.134]
[1754767251133,0.31516934,116670.0,116660.0,0.0024]
[1754767251334,0.31516934,116670.0,116660.0,0.134]
[1754767252004,0.65516934,116670.0,116660.0,0.0024]
[1754767252153,0.65516934,116670.0,116660.0,0.134]
[1754767260325,0.65210934,116670.0,116660.0,0.13598]
[1754767260543,0.65001934,116670.0,116660.0,0.13914]
[1754767262905,0.65372934,116670.0,116660.0,0.13598]
[1754767263104,0.65372934,116670.0,116660.0,0.134]
[1754767263648,0.65363924,116670.0,116660.0,0.134]
[1754767275142,0.65363924,116670.0,116660.0,0.13598]
[1754767276951,0.64992924,116670.0,116660.0,0.13914]
[1754767277538,0.65207924,116670.0,116660.0,0.13914]
[1754767277767,0.65509924,116670.0,116660.0,0.13598]
[1754767279782,0.65509924,116670.0,116660.0,0.00438]
[1754767279977,0.65509924,116670.0,116660.0,0.13594]
[1754767281244,0.65509924,116670.0,116660.0,0.13396]
[1754767286660,0.65509924,116670.0,116660.0,0.13611]
[1754767287082,0.65207924,116670.0,116660.0,0.13611]
[1754767287287,0.18878259,116670.0,116660.0,0.13904]
[1754767287651,0.17133357,116670.0,116660.0,0.13904]
[1754767288471,0.17133357,116670.0,116660.0,0.31047836]
[1754767289662,0.17133357,116670.0,116660.0,0.13904]
[1754767296167,0.17348357,116670.0,116660.0,0.13904]
[1754767296347,0.17348357,116670.0,116660.0,0.13611]
[1754767297218,0.2082761,116670.0,116660.0,0.13611]
[1754767297466,0.2112961,116670.0,116660.0,0.13396]
[1754767301481,0.2112961,116670.0,116660.0,0.13611]
[1754767301706,0.2082761,116670.0,116660.0,0.13611]
[1754767305710,0.2112961,116670.0,116660.0,0.13611]
[1754767321173,0.2112961,116670.0,116660.0,0.13607]
[1754767321405,0.2112961,116670.0,116660.0,0.13392]
[1754767323362,0.2112961,116670.0,116660.0,0.13388]
[1754767327304,0.31560723,116670.0,116660.0,0.13388]
[1754767331992,0.22357512,116670.0,116660.0,0.13584]
[1754767332183,0.22357512,116670.0,116660.0,0.13881]
[1754767335228,0.22357512,116670.0,116660.0,0.13584]
[1754767335229,0.22552512,116670.0,116660.0,0.13584]
[1754767335443,0.22877512,116670.0,116660.0,0.13584]
[1754767336834,0.22877512,116670.0,116660.0,0.13388]
[1754767339464,0.22877512,116670.0,116660.0,0.13596]
[1754767341737,0.22877512,116670.0,116660.0,0.13388]
[1754767346660,0.22877512,116670.0,116660.0,0.0024]
[1754767346864,0.22877512,116670.0,116660.0,0.13384]
[1754767353335,0.22877512,116670.0,116660.0,0.0024]
[1754767353577,0.31563723,116670.0,116660.0,0.13384]
[1754767359695,0.31238723,116670.0,116660.0,0.13592]
[1754767360945,0.31547723,116670.0,116660.0,0.13592]
[1754767364340,0.31238723,116670.0,116660.0,0.13592]
[1754767365006,0.31238723,116670.0,116660.0,0.13909]
[1754767368898,0.31238723,116670.0,116660.0,0.13592]
[1754767369324,0.31557723,116670.0,116660.0,0.13592]
[1754767371867,0.31557723,116670.0,116660.0,0.13484008]
[1754767383109,0.31238723,116670.0,116660.0,0.13484008]
[1754767384144,0.31557723,116670.0,116660.0,0.13484008]
[1754767391199,0.2775947,116670.0,116660.0,0.13484008]
[1754767391419,0.17133357,116670.0,116660.0,0.13782008]
[1754767395044,0.17330357,116670.0,116660.0,0.13782008]
[1754767397981,0.17330357,116670.0,116660.0,0.13484008]
[1754767400180,0.17636357,116670.0,116660.0,0.13484008]
[1754767400391,0.2111421,116670.0,116660.0,0.13484008]
[1754767401609,0.2111421,116670.0,116660.0,0.13276008]
[1754767406732,0.2111421,116670.0,116660.0,0.13244]
[1754767407359,0.2111421,116670.0,116660.0,0.13144]
[1754767423552,0.2111421,116670.0,116660.0,0.12644]
[1754767424987,0.31545323,116670.0,116660.0,0.12644]
[1754767428195,0.31545323,116670.0,116660.0,0.12854]
[1754767431383,0.31545323,116670.0,116660.0,0.12644]
[1754767444214,0.17143836,116660.0,116650.0,0.00364]
[1754767444429,0.22224752,116660.0,116650.0,0.13188]
[1754767444607,0.22535752,116660.0,116650.0,0.13188]
[1754767444820,0.22535752,116660.0,116650.0,0.0004]
[1754767445029,0.32966865,116660.0,116650.0,0.13188]
[1754767445868,0.32966865,116660.0,116650.0,0.13388]
[1754767446295,0.32966865,116660.0,116650.0,0.13288]
[1754767446722,0.32966865,116660.0,116650.0,0.13188]
[1754767447360,0.32966865,116660.0,116650.0,0.13192]
[1754767449261,0.32966865,116660.0,116650.0,0.13402]
[1754767449773,0.32966865,116660.0,116650.0,0.0025]
[1754767449985,0.32966865,116660.0,116650.0,0.13426]
[1754767457203,0.32966865,116660.0,116650.0,0.1341]
[1754767459043,0.32943968,116660.0,116650.0,0.1341]
[1754767460699,0.15823029,116660.0,116650.0,0.1341]
[1754767471035,0.15300029,116660.0,116650.0,0.13727]
[1754767471435,0.13555127,116660.0,116650.0,0.30872306]
[1754767475240,0.13555127,116660.0,116650.0,0.13727]
[1754767477088,0.13771127,116660.0,116650.0,0.13727]
[1754767477515,0.13771127,116660.0,116650.0,0.1341]
[1754767485268,0.13771127,116660.0,116650.0,0.13727]
[1754767489842,0.14080127,116660.0,116650.0,0.132]
[1754767490067,0.14080127,116660.0,116650.0,0.13412]
[1754767492430,0.14080127,116660.0,116650.0,0.132]
[1754767495442,0.14080127,116660.0,116650.0,0.13412]
[1754767495642,0.13771127,116660.0,116650.0,0.13412]
[1754767504064,0.14080127,116660.0,116650.0,0.132]
[1754767504332,0.14080127,116660.0,116650.0,0.13412]
[1754767504503,0.14080127,116660.0,116650.0,0.132]
[1754767506042,0.31223963,116660.0,116650.0,0.132]
[1754767506261,0.14080127,116660.0,116650.0,0.132]
[1754767514265,0.31223963,116660.0,116650.0,0.132]
[1754767515604,0.14080127,116660.0,116650.0,0.132]
[1754767518102,0.13771127,116660.0,116650.0,0.13399]
[1754767518322,0.13771127,116660.0,116650.0,0.13703]
[1754767518545,0.13555127,116660.0,116650.0,0.13703]
[1754767522663,0.13555127,116660.0,116650.0,0.30848306]
[1754767523897,0.13756127,116660.0,116650.0,0.30848306]
[1754767524186,0.13555127,116660.0,116650.0,0.30848306]
[1754767528564,0.13555127,116660.0,116650.0,0.30832306]
[1754767535302,0.13756127,116660.0,116650.0,0.30832306]
[1754767542570,0.13756127,116660.0,116650.0,0.17688306]
[1754767542786,0.13756127,116660.0,116650.0,0.30828306]
[1754767548050,0.13555127,116660.0,116650.0,0.30828306]
[1754767551701,0.37477853,116670.0,116660.0,0.17143836]
[1754767551907,0.47908966,116670.0,116660.0,0.17644836]
[1754767552116,0.48104966,116670.0,116660.0,0.17343836]
[1754767552349,0.48421966,116670.0,116660.0,0.17343836]
[1754767552568,0.48421966,116670.0,116660.0,0.17143836]
[1754767552804,0.48521966,116670.0,116660.0,0.17143836]
[1754767553009,0.48621966,116670.0,116660.0,0.17143836]
[1754767558403,0.65764333,116670.0,116660.0,0.17143836]
[1754767559040,0.65764333,116670.0,116650.0,0.30626306]
[1754767559870,0.00317,116660.0,116650.0,0.30325306]
[1754767560068,0.00513,116660.0,116650.0,0.30325306]
[1754767561848,0.00513,116660.0,116650.0,0.30525306]
[1754767562628,0.00196,116660.0,116650.0,0.30525306]
[1754767563747,0.00196,116660.0,116650.0,0.30826306]
[1754767573212,0.65368333,116670.0,116650.0,0.30826306]
[1754767573613,0.17143836,116660.0,116650.0,0.30826306]
[1754767573833,0.25395053,116660.0,116650.0,0.30826306]
[1754767574251,0.08251217,116660.0,116650.0,0.30826306]
[1754767577732,0.08251217,116660.0,116650.0,0.30814306]
[1754767599878,0.65051351,116670.0,116660.0,0.17143836]
[1754767600078,0.65253351,116670.0,116660.0,0.17347836]
[1754767601022,0.65353351,116670.0,116660.0,0.17347836]
[1754767601563,0.65453351,116670.0,116660.0,0.17347836]
[1754767601834,0.48310966,116670.0,116660.0,0.17347836]
[1754767602841,0.48628966,116670.0,116660.0,0.17347836]
[1754767603489,0.48628966,116670.0,116660.0,0.17143836]
[1754767604536,0.65771333,116670.0,116660.0,0.17143836]
[1754767607318,0.65771333,116670.0,116650.0,0.30614306]
[1754767607900,0.65771333,116670.0,116660.0,0.17143836]
[1754767608310,0.65671333,116670.0,116660.0,0.17143836]
[1754767608714,0.65671333,116670.0,116650.0,0.30614306]
[1754767609345,0.65571333,116670.0,116650.0,0.30614306]
[1754767611069,0.65671333,116670.0,116650.0,0.30614306]
[1754767611486,0.65571333,116670.0,116650.0,0.30614306]
[1754767612083,0.26133047,116660.0,116650.0,0.0004]
[1754767612306,0.34604064,116660.0,116650.0,0.13164]
[1754767612905,0.36348966,116660.0,116650.0,0.0004]
[1754767613102,0.36348966,116660.0,116650.0,0.13164]
[1754767614819,0.36348966,116660.0,116650.0,0.30309306]
[1754767616625,0.36348966,116660.0,116650.0,0.17185306]
[1754767616859,0.36348966,116660.0,116650.0,0.30309306]
[1754767618587,0.36348966,116660.0,116650.0,0.17185306]
[1754767618799,0.36348966,116660.0,116650.0,0.30305306]
[1754767620713,0.36348966,116660.0,116650.0,0.30309306]
[1754767632762,0.36348966,116660.0,116650.0,0.30305306]
[1754767636764,0.36348966,116660.0,116650.0,0.1316]
[1754767637047,0.36348966,116660.0,116650.0,0.30305306]
[1754767638820,0.36348966,116660.0,116650.0,0.1316]
[1754767641288,0.70348966,116660.0,116650.0,0.0004]
[1754767641503,0.70348966,116660.0,116650.0,0.13156]
[1754767641713,0.72923466,116660.0,116650.0,0.13156]
[1754767642583,0.73023466,116660.0,116650.0,0.13156]
[1754767643476,0.73123466,116660.0,116650.0,0.13156]
[1754767644646,0.17145306,116650.0,116640.0,0.0879]
[1754767644897,0.70774844,116650.0,116640.0,0.0879]
[1754767645323,0.73349844,116650.0,116640.0,0.0879]
[1754767645994,0.73354571,116650.0,116640.0,0.0879]
[1754767646241,0.74054571,116650.0,116640.0,0.0879]
[1754767646872,0.74054571,116650.0,116640.0,0.0889]
[1754767646873,0.74554571,116650.0,116640.0,0.0889]
[1754767653602,0.87674571,116650.0,116640.0,0.0889]
[1754767654410,0.53155571,116650.0,116640.0,0.09408]
[1754767654607,0.87155571,116650.0,116640.0,0.09408]
[1754767655015,0.87155571,116650.0,116640.0,0.26554776]
[1754767655787,0.70010265,116650.0,116640.0,0.26554776]
[1754767656025,0.55145363,116650.0,116640.0,0.39674776]
[1754767656229,0.21145363,116650.0,116640.0,0.39674776]
[1754767656459,0.18570363,116650.0,116640.0,0.39674776]
[1754767656653,0.4563584,116650.0,116640.0,0.39674776]
[1754767672347,0.35204727,116650.0,116640.0,0.39674776]
[1754767677191,0.35204727,116650.0,116640.0,0.39574776]
[1754767677367,0.34704727,116650.0,116640.0,0.39574776]
[1754767677589,0.34004727,116650.0,116640.0,0.39674776]
[1754767677783,0.387168,116650.0,116640.0,0.39774776]
[1754767678374,0.047168,116650.0,116640.0,0.39774776]
[1754767678577,4.727e-05,116650.0,116640.0,0.39774776]
[1754767681277,4.727e-05,116650.0,116640.0,0.42348876]
[1754767681955,4.727e-05,116650.0,116640.0,0.79353164]
[1754767682400,0.025742,116680.0,116670.0,0.17142367]
[1754767682629,0.11265143,116680.0,116670.0,0.30455367]
[1754767682845,0.11265143,116680.0,116670.0,0.30754367]
[1754767684597,0.08690943,116680.0,116670.0,0.31598348]
[1754767685244,4.732e-05,116680.0,116670.0,0.31598348]
[1754767686655,4.732e-05,116680.0,116670.0,0.31698348]
[1754767688753,4.732e-05,116680.0,116670.0,0.31798348]
[1754767691972,4.732e-05,116680.0,116670.0,0.30954367]
[1754767692148,0.00505732,116680.0,116670.0,0.30655367]
[1754767692602,0.00203732,116680.0,116670.0,0.30954367]
[1754767694970,0.00203732,116680.0,116670.0,0.31793456]
[1754767695825,0.00203732,116680.0,116670.0,0.30954367]
[1754767696441,4.732e-05,116680.0,116670.0,0.30954367]
[1754767698976,4.732e-05,116680.0,116670.0,0.31808549]
[1754767699261,4.732e-05,116680.0,116670.0,0.31509549]
[1754767699262,0.00506732,116680.0,116670.0,0.31509549]
[1754767699718,0.00203732,116680.0,116670.0,0.31509549]
[1754767699931,0.00203732,116680.0,116670.0,0.30655367]
[1754767700168,0.00203732,116680.0,116670.0,0.30977367]
[1754767701946,0.00203732,116680.0,116670.0,0.31835758]
[1754767704872,4.732e-05,116680.0,116670.0,0.31835758]
[1754767708758,0.00203732,116680.0,116670.0,0.31835758]
[1754767713860,0.00203732,116680.0,116670.0,0.51835758]
[1754767714915,4.732e-05,116680.0,116670.0,0.51835758]
[1754767724167,4.732e-05,116680.0,116670.0,0.51735758]
[1754767740663,0.00215732,116680.0,116670.0,0.51735758]
[1754767748889,0.00536732,116680.0,116670.0,0.51212758]
[1754767749262,0.00536732,116680.0,116670.0,0.51423758]
[1754767749455,0.00215732,116680.0,116670.0,0.51423758]
[1754767751365,0.00215732,116680.0,116670.0,0.51744758]
[1754767757464,4.732e-05,116680.0,116670.0,0.51744758]
[1754767818138,0.00526732,116680.0,116670.0,0.51212758]
[1754767818537,0.00526732,116680.0,116670.0,0.51421758]
[1754767818714,0.00212732,116680.0,116670.0,0.51421758]
[1754767821317,0.00212732,116680.0,116670.0,0.51733758]
[1754767826677,0.00526732,116680.0,116670.0,0.51212758]
[1754767832757,0.09212943,116680.0,116670.0,0.50418367]
[1754767832971,0.11935799,116680.0,116670.0,0.50418367]
[1754767834921,0.29076697,116680.0,116670.0,0.50418367]
[1754767835368,0.11935799,116680.0,116670.0,0.50418367]
[1754767836871,0.29076697,116680.0,116670.0,0.50418367]
[1754767838853,0.11935799,116680.0,116670.0,0.50418367]
[1754767839259,0.11935799,116680.0,116670.0,0.50627367]
[1754767841404,0.11413799,116680.0,116670.0,0.50939367]
[1754767843021,0.11621799,116680.0,116670.0,0.50939367]
[1754767843223,0.11621799,116680.0,116670.0,0.50627367]
[1754767846642,0.11935799,116680.0,116670.0,0.50627367]
[1754767847078,0.29076697,116680.0,116670.0,0.50627367]
[1754767847487,0.29076697,116680.0,116670.0,0.50418367]
[1754767850386,0.11935799,116680.0,116670.0,0.50418367]
[1754767850727,0.11621799,116680.0,116670.0,0.50618367]
[1754767851591,0.11621799,116680.0,116670.0,0.50920367]
[1754767854382,0.11621799,116680.0,116670.0,0.50618367]
[1754767856344,0.28762697,116680.0,116670.0,0.50618367]
[1754767857184,0.11621799,116680.0,116670.0,0.50618367]
[1754767859005,0.28762697,116680.0,116670.0,0.50618367]
[1754767859857,0.11621799,116680.0,116670.0,0.50618367]
[1754767861334,0.28762697,116680.0,116670.0,0.50618367]
[1754767861941,0.11621799,116680.0,116670.0,0.50618367]
[1754767863775,0.11621799,116680.0,116670.0,0.50920367]
[1754767864617,0.11413799,116680.0,116670.0,0.50920367]
[1754767865268,0.30810599,116680.0,116670.0,0.202]
[1754767865479,0.30810599,116680.0,116670.0,0.50410367]
[1754767866950,0.30810599,116680.0,116670.0,0.50610367]
[1754767869965,0.13669701,116680.0,116670.0,0.50610367]
[1754767870197,0.13356701,116680.0,116670.0,0.50610367]
[1754767871848,0.30497599,116680.0,116670.0,0.50610367]
[1754767873653,0.30810599,116680.0,116670.0,0.50610367]
[1754767874719,0.13669701,116680.0,116670.0,0.50610367]
[1754767874945,0.13356701,116680.0,116670.0,0.50610367]
[1754767884452,0.13356701,116680.0,116670.0,0.50928367]
[1754767886670,0.13158701,116680.0,116670.0,0.50928367]
[1754767891745,0.13374701,116680.0,116670.0,0.50928367]
[1754767892017,0.13374701,116680.0,116670.0,0.50610367]
[1754767892684,0.13697701,116680.0,116670.0,0.50610367]
[1754767893386,0.30838599,116680.0,116670.0,0.50610367]
[1754767894031,0.30838599,116680.0,116670.0,0.50510367]
[1754767894284,0.30838599,116680.0,116670.0,0.50410367]
[1754767896095,0.13697701,116680.0,116670.0,0.50410367]
[1754767901125,0.13374701,116680.0,116670.0,0.50410367]
[1754767901306,0.13374701,116680.0,116670.0,0.50728367]
[1754767902378,0.13158701,116680.0,116670.0,0.50728367]
[1754767905332,0.13374701,116680.0,116670.0,0.50728367]
[1754767914166,0.30515599,116680.0,116670.0,0.50728367]
[1754767917981,0.30515599,116680.0,116670.0,0.50410367]
[1754767918386,0.33089499,116680.0,116670.0,0.50410367]
[1754767919149,0.33382499,116680.0,116670.0,0.50410367]
[1754767919876,0.33382499,116680.0,116670.0,0.33068]
[1754767920980,0.80442499,116680.0,116670.0,0.2]
[1754767922040,0.80542499,116680.0,116670.0,0.2]
[1754767926076,0.80642499,116680.0,116670.0,0.2]
[1754767971278,0.80642499,116680.0,116670.0,0.20197]
[1754767972186,0.80642499,116680.0,116670.0,0.25197]
[1754767976885,0.80642499,116680.0,116670.0,0.20197]
[1754767977741,0.80349499,116680.0,116670.0,0.20197]
[1754767977961,0.80133499,116680.0,116670.0,0.20512]
[1754767979321,0.80334499,116680.0,116670.0,0.20512]
[1754767980174,0.80334499,116680.0,116670.0,0.20197]
[1754767980856,0.80658499,116680.0,116670.0,0.20197]
[1754767983082,0.80658499,116680.0,116670.0,0.20697]
[1754767994993,0.78084599,116680.0,116670.0,0.20697]
[1754767995222,0.80658899,116680.0,116670.0,0.20697]
[1754767995689,0.80658899,116680.0,116670.0,0.205]
[1754767996639,0.78084599,116680.0,116670.0,0.205]
[1754767997085,0.80658899,116680.0,116670.0,0.205]
[1754767998116,0.78084599,116680.0,116670.0,0.205]
[1754767998318,0.80658799,116680.0,116670.0,0.205]
[1754767999263,0.78084599,116680.0,116670.0,0.205]
[1754767999469,0.80658799,116680.0,116670.0,0.205]
[1754768002071,0.8856686,116680.0,116670.0,0.205]
[1754768002685,0.8846686,116680.0,116670.0,0.205]
[1754768003130,0.81058799,116680.0,116670.0,0.206]